fUSD/lending_fUSD_20260610
["ID","MTS","AMOUNT","RATE_DAILY","PERIOD"]
[424738425,1781105444000,-736.0,0.00013534,2]
[424738426,1781105444000,-314.91814026,0.00013574,2]
[424738427,1781105444000,-711.0684506,0.00013598,2]
[424738430,1781105444000,-314.91814026,0.00013633,2]
[424738431,1781105444000,-314.91814026,0.0001369,2]
[424738429,1781105444000,-559.61424166,0.00013613,2]
[424738438,1781105444000,-500.0,0.00013698,2]
[424738432,1781105444000,-2525.0,0.00013698,5]
[424738433,1781105444000,-500.0,0.00013698,2]
[424738435,1781105444000,-500.0,0.00013698,2]
[424738437,1781105444000,-314.71428297,0.00013698,2]
[424738393,1781105444000,-559.61424166,0.0001283,2]
[424738436,1781105444000,-500.0,0.00013698,2]
[424738414,1781105444000,-150.0,0.0001336,2]
[424738413,1781105444000,-559.61424166,0.00013352,2]
[424738423,1781105444000,-314.91814026,0.00013512,2]
[424738417,1781105444000,-150.0,0.0001338,2]
[424738383,1781105444000,-2000.0,0.00012671,2]
[424738416,1781105444000,-312.78836292,0.00013377,2]
[424738382,1781105444000,-151.0,0.00012648,2]
[424738385,1781105444000,-350.0,0.00012693,2]
[424738386,1781105444000,-559.61424166,0.00012699,2]
[424738389,1781105444000,-152.75786948,0.00012794,2]
[424738392,1781105444000,-11791.89340478,0.00012812,2]
[424738387,1781105444000,-152.0,0.00012781,2]
[424738388,1781105444000,-167.71986107,0.00012781,2]
[424738390,1781105444000,-2070.0,0.00012797,5]
[424738391,1781105444000,-1584.33901199,0.00012811,2]
[424738394,1781105444000,-2000.0,0.00012871,2]
[424738396,1781105444000,-22236.08,0.0001288,2]
[424738384,1781105444000,-500.0,0.00012688,2]
[424738395,1781105444000,-22236.08,0.0001288,2]
[424738397,1781105444000,-350.0,0.00012943,2]
[424738407,1781105444000,-559.61424166,0.00013221,2]
[424738406,1781105444000,-350.0,0.00013209,2]
[424738404,1781105444000,-1584.33901199,0.00013159,2]
[424738400,1781105444000,-350.0,0.00013031,2]
[424738402,1781105444000,-559.61424166,0.00013091,2]
[424738408,1781105444000,-500.0,0.00013236,2]
[424738401,1781105444000,-2000.0,0.00013071,2]
[424738403,1781105444000,-306.51,0.00013106,2]
[424738405,1781105444000,-11791.89340478,0.0001316,2]
[424738398,1781105444000,-559.61424166,0.0001296,2]
[424738399,1781105444000,-500.0,0.00012962,2]
[424738476,1781105445000,-500.0,0.00013698,2]
[424738475,1781105445000,-500.0,0.00013698,2]
[424738473,1781105445000,-500.0,0.00013698,2]
[424738464,1781105445000,-500.0,0.00013698,2]
[424738472,1781105445000,-500.0,0.00013698,2]
[424738471,1781105445000,-500.0,0.00013698,2]
[424738470,1781105445000,-500.0,0.00013698,2]
[424738469,1781105445000,-500.0,0.00013698,2]
[424738468,1781105445000,-500.0,0.00013698,2]
[424738486,1781105445000,-168.74,0.00013699,2]
[424738474,1781105445000,-500.0,0.00013698,2]
[424738484,1781105445000,-1100.3,0.00013699,2]
[424738478,1781105445000,-500.0,0.00013698,2]
[424738480,1781105445000,-500.0,0.00013698,2]
[424738477,1781105445000,-500.0,0.00013698,2]
[424738479,1781105445000,-500.0,0.00013698,2]
[424738485,1781105445000,-200.0,0.00013699,2]
[424738483,1781105445000,-500.0,0.00013698,2]
[424738482,1781105445000,-500.0,0.00013698,2]
[424738488,1781105445000,-2500.0,0.00013699,2]
[424738487,1781105445000,-843.7,0.00013699,2]
[424738491,1781105445000,-314.91814026,0.00013743,2]
[424738490,1781105445000,-559.61424166,0.00013743,2]
[424738466,1781105445000,-500.0,0.00013698,2]
[424738481,1781105445000,-500.0,0.00013698,2]
[424738467,1781105445000,-500.0,0.00013698,2]
[424738492,1781105445000,-305.33414225,0.00013755,2]
[424738456,1781105445000,-500.0,0.00013698,2]
[424738440,1781105445000,-500.0,0.00013698,2]
[424738441,1781105445000,-500.0,0.00013698,2]
[424738439,1781105445000,-500.0,0.00013698,2]
[424738443,1781105445000,-500.0,0.00013698,2]
[424738442,1781105445000,-500.0,0.00013698,2]
[424738444,1781105445000,-500.0,0.00013698,2]
[424738447,1781105445000,-501.51171247,0.00013698,2]
[424738445,1781105445000,-500.0,0.00013698,2]
[424738449,1781105445000,-500.0,0.00013698,2]
[424738450,1781105445000,-500.0,0.00013698,2]
[424738451,1781105445000,-500.0,0.00013698,2]
[424738465,1781105445000,-500.0,0.00013698,2]
[424738452,1781105445000,-500.0,0.00013698,2]
[424738448,1781105445000,-500.0,0.00013698,2]
[424738458,1781105445000,-500.0,0.00013698,2]
[424738459,1781105445000,-500.0,0.00013698,2]
[424738453,1781105445000,-500.0,0.00013698,2]
[424738455,1781105445000,-500.0,0.00013698,2]
[424738457,1781105445000,-500.0,0.00013698,2]
[424738460,1781105445000,-500.0,0.00013698,2]
[424738462,1781105445000,-500.0,0.00013698,2]
[424738463,1781105445000,-500.0,0.00013698,2]
[424738461,1781105445000,-500.0,0.00013698,2]
[424738454,1781105445000,-500.0,0.00013698,2]
[424738446,1781105445000,-500.0,0.00013698,2]
[424738489,1781105445000,-1000.0,0.00013699,2]
[424738551,1781105445000,-431.84226118,0.00014815,2]
[424738496,1781105445000,-559.61424166,0.00013874,2]
[424738522,1781105445000,-169.73,0.00014187,2]
[424738527,1781105445000,-1584.33901199,0.00014204,2]
[424738526,1781105445000,-500.0,0.00014203,2]
[424738528,1781105445000,-11791.89340478,0.00014204,2]
[424738532,1781105445000,-357.53323382,0.0001428,2]
[424738524,1781105445000,-169.73,0.00014187,2]
[424738533,1781105445000,-312.78836292,0.00014372,2]
[424738534,1781105445000,-559.61424166,0.00014395,2]
[424738540,1781105445000,-1105.33019,0.00014568,2]
[424738542,1781105445000,-312.78836292,0.00014596,2]
[424738543,1781105445000,-151.0,0.0001463,2]
[424738529,1781105445000,-163.0,0.0001423,2]
[424738536,1781105445000,-312.78836292,0.0001449,2]
[424738537,1781105445000,-559.61424166,0.00014526,2]
[424738541,1781105445000,-1068.34,0.00014593,2]
[424738539,1781105445000,-11791.89340478,0.00014552,2]
[424738544,1781105445000,-151.0,0.0001463,2]
[424738546,1781105445000,-500.0,0.00014677,13]
[424738547,1781105445000,-312.78836292,0.00014694,2]
[424738549,1781105445000,-312.78836292,0.00014785,2]
[424738548,1781105445000,-1655.095,0.00014773,2]
[424738550,1781105445000,-559.61424166,0.00014787,2]
[424738545,1781105445000,-559.61424166,0.00014656,2]
[424738494,1781105445000,-1584.33901199,0.00013856,2]
[424738535,1781105445000,-306.51,0.00014417,2]
[424738530,1781105445000,-312.78836292,0.00014239,2]
[424738538,1781105445000,-1584.33901199,0.00014552,2]
[424738525,1781105445000,-500.0,0.00014199,2]
[424738531,1781105445000,-559.61424166,0.00014265,2]
[424738493,1781105445000,-831.43,0.00013777,2]
[424738498,1781105445000,-2597.99923152,0.000139,2]
[424738497,1781105445000,-312.78836292,0.00013875,2]
[424738499,1781105445000,-215.11933425,0.00013915,2]
[424738501,1781105445000,-250.0,0.00014,2]
[424738500,1781105445000,-500.0,0.00013924,2]
[424738504,1781105445000,-2000.0,0.00014,2]
[424738505,1781105445000,-2000.0,0.00014,2]
[424738503,1781105445000,-2000.0,0.00014,2]
[424738502,1781105445000,-2000.0,0.00014,2]
[424738506,1781105445000,-2000.0,0.00014,2]
[424738495,1781105445000,-11791.89340478,0.00013856,2]
[424738519,1781105445000,-598.59,0.00014168,2]
[424738508,1781105445000,-2000.0,0.00014,2]
[424738512,1781105445000,-2000.0,0.00014,2]
[424738509,1781105445000,-2000.0,0.00014,2]
[424738511,1781105445000,-2000.0,0.00014,2]
[424738518,1781105445000,-559.61424166,0.00014134,2]
[424738510,1781105445000,-2000.0,0.00014,2]
[424738516,1781105445000,-312.78836292,0.00014081,2]
[424738507,1781105445000,-2664.0,0.00014,2]
[424738514,1781105445000,-2000.0,0.00014,2]
[424738515,1781105445000,-559.61424166,0.00014004,2]
[424738513,1781105445000,-2000.0,0.00014,2]
[424738585,1781105446000,-500.0,0.00014999,21]
[424738592,1781105446000,-500.0,0.00014999,2]
[424738590,1781105446000,-500.0,0.00014999,2]
[424738587,1781105446000,-500.0,0.00014999,21]
[424738586,1781105446000,-500.0,0.00014999,21]
[424738589,1781105446000,-500.0,0.00014999,2]
[424738584,1781105446000,-500.0,0.00014999,21]
[424738583,1781105446000,-500.0,0.00014999,21]
[424738579,1781105446000,-500.0,0.00014999,21]
[424738596,1781105446000,-500.0,0.00014999,2]
[424738582,1781105446000,-500.0,0.00014999,21]
[424738588,1781105446000,-278.42855083,0.00014999,21]
[424738599,1781105446000,-500.0,0.00014999,2]
[424738591,1781105446000,-500.0,0.00014999,2]
[424738595,1781105446000,-500.0,0.00014999,2]
[424738600,1781105446000,-553.56778644,0.00014999,2]
[424738593,1781105446000,-500.0,0.00014999,2]
[424738598,1781105446000,-500.0,0.00014999,2]
[424738597,1781105446000,-500.0,0.00014999,2]
[424738602,1781105446000,-500.0,0.00014999,2]
[424738601,1781105446000,-500.0,0.00014999,2]
[424738603,1781105446000,-500.0,0.00014999,2]
[424738606,1781105446000,-500.0,0.00014999,2]
[424738604,1781105446000,-500.0,0.00014999,2]
[424738605,1781105446000,-500.0,0.00014999,2]
[424738594,1781105446000,-376.69819289,0.00014999,2]
[424738581,1781105446000,-500.0,0.00014999,21]
[424738552,1781105446000,-1102.89038762,0.00014862,2]
[424738575,1781105446000,-500.0,0.00014999,21]
[424738553,1781105446000,-1252.0,0.0001488,2]
[424738554,1781105446000,-500.0,0.00014899,2]
[424738555,1781105446000,-321.06184772,0.000149,2]
[424738557,1781105446000,-735.5060968,0.000149,2]
[424738556,1781105446000,-160.0,0.000149,2]
[424738561,1781105446000,-1500.0,0.00014943,2]
[424738560,1781105446000,-559.61424166,0.00014917,2]
[424738562,1781105446000,-500.0,0.00014998,14]
[424738558,1781105446000,-11791.89340478,0.000149,2]
[424738565,1781105446000,-500.0,0.00014999,17]
[424738559,1781105446000,-1584.33901199,0.000149,2]
[424738563,1781105446000,-500.0,0.00014999,15]
[424738564,1781105446000,-500.0,0.00014999,16]
[424738566,1781105446000,-500.0,0.00014999,18]
[424738567,1781105446000,-500.0,0.00014999,19]
[424738569,1781105446000,-500.0,0.00014999,21]
[424738570,1781105446000,-500.0,0.00014999,21]
[424738568,1781105446000,-500.0,0.00014999,20]
[424738571,1781105446000,-500.0,0.00014999,21]
[424738572,1781105446000,-500.0,0.00014999,21]
[424738574,1781105446000,-500.0,0.00014999,21]
[424738573,1781105446000,-500.0,0.00014999,21]
[424738576,1781105446000,-500.0,0.00014999,21]
[424738577,1781105446000,-500.0,0.00014999,21]
[424738578,1781105446000,-500.0,0.00014999,21]
[424738580,1781105446000,-500.0,0.00014999,21]
[424738608,1781105446000,-500.0,0.00014999,2]
[424738622,1781105446000,-500.0,0.00014999,2]
[424738610,1781105446000,-500.0,0.00014999,2]
[424738642,1781105446000,-500.0,0.00014999,2]
[424738638,1781105446000,-500.0,0.00014999,2]
[424738641,1781105446000,-500.0,0.00014999,2]
[424738640,1781105446000,-500.0,0.00014999,2]
[424738644,1781105446000,-500.0,0.00014999,2]
[424738645,1781105446000,-500.0,0.00014999,2]
[424738657,1781105446000,-500.0,0.00014999,2]
[424738646,1781105446000,-500.0,0.00014999,2]
[424738656,1781105446000,-500.0,0.00014999,2]
[424738648,1781105446000,-500.0,0.00014999,2]
[424738647,1781105446000,-500.0,0.00014999,2]
[424738651,1781105446000,-500.0,0.00014999,2]
[424738649,1781105446000,-500.0,0.00014999,2]
[424738654,1781105446000,-500.0,0.00014999,2]
[424738653,1781105446000,-500.0,0.00014999,2]
[424738650,1781105446000,-500.0,0.00014999,2]
[424738655,1781105446000,-500.0,0.00014999,2]
[424738658,1781105446000,-500.0,0.00014999,2]
[424738660,1781105446000,-500.0,0.00014999,2]
[424738661,1781105446000,-500.0,0.00014999,2]
[424738662,1781105446000,-500.0,0.00014999,2]
[424738659,1781105446000,-500.0,0.00014999,2]
[424738664,1781105446000,-500.0,0.00014999,2]
[424738663,1781105446000,-500.0,0.00014999,2]
[424738607,1781105446000,-500.0,0.00014999,2]
[424738643,1781105446000,-500.0,0.00014999,2]
[424738637,1781105446000,-500.0,0.00014999,2]
[424738652,1781105446000,-500.0,0.00014999,2]
[424738639,1781105446000,-500.0,0.00014999,2]
[424738609,1781105446000,-500.0,0.00014999,2]
[424738635,1781105446000,-500.0,0.00014999,2]
[424738611,1781105446000,-500.0,0.00014999,2]
[424738623,1781105446000,-500.0,0.00014999,2]
[424738614,1781105446000,-500.0,0.00014999,2]
[424738621,1781105446000,-500.0,0.00014999,2]
[424738616,1781105446000,-500.0,0.00014999,2]
[424738617,1781105446000,-500.0,0.00014999,2]
[424738619,1781105446000,-500.0,0.00014999,2]
[424738618,1781105446000,-500.0,0.00014999,2]
[424738620,1781105446000,-500.0,0.00014999,2]
[424738613,1781105446000,-532.25736516,0.00014999,2]
[424738615,1781105446000,-500.0,0.00014999,2]
[424738612,1781105446000,-500.0,0.00014999,2]
[424738626,1781105446000,-500.0,0.00014999,2]
[424738624,1781105446000,-500.0,0.00014999,2]
[424738634,1781105446000,-500.0,0.00014999,2]
[424738632,1781105446000,-500.0,0.00014999,2]
[424738629,1781105446000,-500.0,0.00014999,2]
[424738633,1781105446000,-500.0,0.00014999,2]
[424738636,1781105446000,-500.0,0.00014999,2]
[424738631,1781105446000,-500.0,0.00014999,2]
[424738628,1781105446000,-500.0,0.00014999,2]
[424738625,1781105446000,-500.0,0.00014999,2]
[424738627,1781105446000,-500.0,0.00014999,2]
[424738630,1781105446000,-500.0,0.00014999,2]
[424738679,1781105447000,-500.0,0.00014999,2]
[424738686,1781105447000,-500.0,0.00014999,2]
[424738683,1781105447000,-500.0,0.00014999,2]
[424738685,1781105447000,-500.0,0.00014999,2]
[424738682,1781105447000,-500.0,0.00014999,2]
[424738684,1781105447000,-500.0,0.00014999,2]
[424738681,1781105447000,-500.0,0.00014999,2]
[424738688,1781105447000,-500.0,0.00014999,2]
[424738680,1781105447000,-500.0,0.00014999,2]
[424738677,1781105447000,-500.0,0.00014999,2]
[424738676,1781105447000,-500.0,0.00014999,2]
[424738670,1781105447000,-500.0,0.00014999,2]
[424738674,1781105447000,-500.0,0.00014999,2]
[424738675,1781105447000,-500.0,0.00014999,2]
[424738678,1781105447000,-500.0,0.00014999,2]
[424738672,1781105447000,-500.0,0.00014999,2]
[424738671,1781105447000,-500.0,0.00014999,2]
[424738666,1781105447000,-500.0,0.00014999,2]
[424738667,1781105447000,-500.0,0.00014999,2]
[424738665,1781105447000,-500.0,0.00014999,2]
[424738668,1781105447000,-500.0,0.00014999,2]
[424738669,1781105447000,-500.0,0.00014999,2]
[424738687,1781105447000,-500.0,0.00014999,2]
[424738673,1781105447000,-500.0,0.00014999,2]
[424738689,1781105447000,-500.0,0.00014999,2]
[424738692,1781105447000,-500.0,0.00014999,2]
[424738690,1781105447000,-500.0,0.00014999,2]
[424738691,1781105447000,-500.0,0.00014999,2]
[424738715,1781105447000,-929904.46085294,0.00015,2]
[424738712,1781105447000,-300.0,0.00014999,2]
[424738713,1781105447000,-250.0,0.00015,2]
[424738707,1781105447000,-500.0,0.00014999,2]
[424738708,1781105447000,-627.07450446,0.00014999,2]
[424738710,1781105447000,-300.0,0.00014999,2]
[424738711,1781105447000,-300.0,0.00014999,2]
[424738709,1781105447000,-666.0,0.00014999,2]
[424738706,1781105447000,-500.0,0.00014999,2]
[424738704,1781105447000,-500.0,0.00014999,2]
[424738705,1781105447000,-500.0,0.00014999,2]
[424738703,1781105447000,-500.0,0.00014999,2]
[424738694,1781105447000,-500.0,0.00014999,2]
[424738701,1781105447000,-500.0,0.00014999,2]
[424738695,1781105447000,-500.0,0.00014999,2]
[424738693,1781105447000,-500.0,0.00014999,2]
[424738698,1781105447000,-500.0,0.00014999,2]
[424738714,1781105447000,-2000.0,0.00015,2]
[424738697,1781105447000,-500.0,0.00014999,2]
[424738696,1781105447000,-500.0,0.00014999,2]
[424738699,1781105447000,-500.0,0.00014999,2]
[424738702,1781105447000,-500.0,0.00014999,2]
[424738700,1781105447000,-500.0,0.00014999,2]
[424738724,1781105449000,-500.0,0.00013698,2]
[424738716,1781105449000,-557602.91651755,0.00015,2]
[424738717,1781105449000,-64596.51933171,0.00015,2]
[424738718,1781105449000,-461.4764395,0.00015,2]
[424738719,1781105449000,-205.6711494,0.00011866,3]
[424738720,1781105449000,-500.0,0.00013698,2]
[424738721,1781105449000,-500.0,0.00013698,2]
[424738723,1781105449000,-500.0,0.00013698,2]
[424738727,1781105449000,-10214.16560673,0.00015,2]
[424738722,1781105449000,-500.0,0.00013698,2]
[424738729,1781105449000,-9440.05,0.00015,2]
[424738730,1781105449000,-9295.67701629,0.00015,2]
[424738726,1781105449000,-500.0,0.00013698,2]
[424738728,1781105449000,-4749.5236,0.00015,2]
[424738732,1781105449000,-2131.24767352,0.00015,2]
[424738731,1781105449000,-500.0,0.00014199,2]
[424738733,1781105449000,-503.0,0.00015,2]
[424738734,1781105449000,-13350.86158558,0.00015,2]
[424738735,1781105449000,-877.403,0.00015,2]
[424738725,1781105449000,-500.0,0.00013698,2]
[424738760,1781106632000,-141.7112,0.0001151,2]
[424738759,1781106632000,-166.66,0.0001133,2]
[424738806,1781106640000,-152.0,0.00012009,7]
[424738801,1781106640000,-221.0,0.00012008,2]
[424738803,1781106640000,-222.0,0.00012008,2]
[424738800,1781106640000,-613.67,0.00011976,2]
[424738815,1781106640000,-1948.32316134,0.00012276,2]
[424738805,1781106640000,-227.0,0.00012008,2]
[424738804,1781106640000,-221.0,0.00012008,2]
[424738816,1781106640000,-166.66,0.00012284,2]
[424738812,1781106640000,-173.59,0.00012152,2]
[424738798,1781106640000,-169.64399403,0.00011806,2]
[424738802,1781106640000,-223.0,0.00012008,2]
[424738807,1781106640000,-204.56,0.00012015,2]
[424738794,1781106640000,-166.66,0.00011569,2]
[424738808,1781106640000,-225.0,0.00012026,2]
[424738796,1781106640000,-151.0,0.00011701,2]
[424738793,1781106640000,-2000.0,0.00011568,2]
[424738795,1781106640000,-215.92376884,0.00011597,2]
[424738791,1781106640000,-150.0,0.00011567,2]
[424738797,1781106640000,-151.0,0.00011701,2]
[424738792,1781106640000,-28110.0909,0.00011568,2]
[424738790,1781106640000,-4231.28461134,0.00011538,9]
[424738789,1781106640000,-343.94,0.00011538,9]
[424738788,1781106640000,-409.53920597,0.00011538,9]
[424738787,1781106640000,-27.93279403,0.0001151,2]
[424738799,1781106640000,-166.66,0.00011807,2]
[424738818,1781106640000,-166.34,0.00012329,2]
[424738811,1781106640000,-161.96,0.00012075,2]
[424738817,1781106640000,-204.56,0.00012315,2]
[424738814,1781106640000,-2214.94788622,0.00012276,2]
[424738841,1781106640000,-500.0,0.00013698,2]
[424738839,1781106640000,-308.78645228,0.00013693,2]
[424738837,1781106640000,-173.59,0.00013671,2]
[424738838,1781106640000,-229.19148201,0.00013687,2]
[424738840,1781106640000,-475.17501502,0.00013698,2]
[424738833,1781106640000,-316.0,0.000136,2]
[424738834,1781106640000,-2500.0,0.00013658,2]
[424738836,1781106640000,-6433.16574723,0.00013659,2]
[424738835,1781106640000,-157.58432558,0.00013659,2]
[424738832,1781106640000,-1839.9685,0.000136,2]
[424738830,1781106640000,-308.78645227,0.00013272,2]
[424738825,1781106640000,-308.78645228,0.00012909,2]
[424738831,1781106640000,-613.67,0.00013473,2]
[424738829,1781106640000,-204.56,0.00013216,2]
[424738809,1781106640000,-228.0,0.00012026,2]
[424738810,1781106640000,-166.66,0.00012046,2]
[424738813,1781106640000,-171.57,0.00012242,2]
[424738827,1781106640000,-308.78645227,0.0001304,2]
[424738820,1781106640000,-302.0,0.00012363,2]
[424738821,1781106640000,-250.0,0.00012463,2]
[424738819,1781106640000,-152.0,0.00012363,2]
[424738826,1781106640000,-204.56,0.00012916,2]
[424738822,1781106640000,-166.66,0.00012523,2]
[424738828,1781106640000,-308.78645227,0.00013162,2]
[424738824,1781106640000,-255.0,0.00012631,2]
[424738823,1781106640000,-204.56,0.00012616,2]
[424738844,1781106641000,-292.97637559,0.00013698,2]
[424738842,1781106641000,-500.0,0.00013698,2]
[424738843,1781106641000,-500.0,0.00013698,2]
[424738845,1781106641000,-250.0,0.00013699,2]
[424738848,1781106641000,-1668.38842984,0.000137,2]
[424738847,1781106641000,-528.37,0.00013699,2]
[424738849,1781106641000,-1245.28077144,0.000137,2]
[424738846,1781106641000,-200.0,0.00013699,2]
[424738851,1781106641000,-658.15194705,0.000137,2]
[424738852,1781106641000,-2767.42,0.000137,2]
[424738850,1781106641000,-680.33,0.000137,2]
[424738853,1781106641000,-403.913064,0.000137,2]
[424738859,1781106641000,-4390.94608498,0.000137,2]
[424738858,1781106641000,-14927.99016287,0.000137,2]
[424738860,1781106641000,-2854.91302555,0.000137,2]
[424738861,1781106641000,-3685.87841747,0.000137,2]
[424739140,1781106643000,-500.0,0.00013758,2]
[424739147,1781106643000,-500.0,0.00013758,2]
[424739149,1781106643000,-500.0,0.00013758,2]
[424739152,1781106643000,-500.0,0.00013758,2]
[424739169,1781106643000,-405.71878827,0.00013758,2]
[424739154,1781106643000,-500.0,0.00013758,2]
[424739158,1781106643000,-500.0,0.00013758,2]
[424739167,1781106643000,-500.0,0.00013758,2]
[424739145,1781106643000,-500.0,0.00013758,2]
[424739161,1781106643000,-500.0,0.00013758,2]
[424739163,1781106643000,-500.0,0.00013758,2]
[424739165,1781106643000,-500.0,0.00013758,2]
[424739172,1781106643000,-500.0,0.00013758,2]
[424739156,1781106643000,-500.0,0.00013758,2]
[424739142,1781106643000,-500.0,0.00013758,2]
[424739137,1781106643000,-500.0,0.00013758,2]
[424739133,1781106643000,-500.0,0.00013758,2]
[424739176,1781106643000,-500.0,0.00013758,2]
[424739095,1781106643000,-151.0,0.00011701,2]
[424739097,1781106643000,-415.0250077,0.000137,2]
[424739114,1781106643000,-500.0,0.00013758,2]
[424739105,1781106643000,-88941.7285786,0.000137,2]
[424739107,1781106643000,-500.0,0.00013758,2]
[424739117,1781106643000,-500.0,0.00013758,2]
[424739121,1781106643000,-500.0,0.00013758,2]
[424739119,1781106643000,-500.0,0.00013758,2]
[424739112,1781106643000,-500.0,0.00013758,2]
[424739110,1781106643000,-500.0,0.00013758,2]
[424739123,1781106643000,-500.0,0.00013758,2]
[424739126,1781106643000,-500.0,0.00013758,2]
[424739128,1781106643000,-500.0,0.00013758,2]
[424739130,1781106643000,-500.0,0.00013758,2]
[424739135,1781106643000,-500.0,0.00013758,2]
[424739178,1781106643000,-274.12539866,0.00013758,2]
[424739174,1781106643000,-500.0,0.00013758,2]
[424739189,1781106643000,-500.0,0.00013758,2]
[424739228,1781106643000,-500.0,0.00013758,2]
[424739238,1781106643000,-500.0,0.00013758,2]
[424739230,1781106643000,-500.0,0.00013758,2]
[424739234,1781106643000,-500.0,0.00013758,2]
[424739236,1781106643000,-500.0,0.00013758,2]
[424739232,1781106643000,-500.0,0.00013758,2]
[424739233,1781106643000,-500.0,0.00013758,2]
[424739240,1781106643000,-500.0,0.00013758,2]
[424739244,1781106643000,-500.0,0.00013758,2]
[424739251,1781106643000,-500.0,0.00013758,2]
[424739247,1781106643000,-500.0,0.00013758,2]
[424739257,1781106643000,-500.0,0.00013758,2]
[424739254,1781106643000,-500.0,0.00013758,2]
[424739249,1781106643000,-500.0,0.00013758,2]
[424739183,1781106643000,-500.0,0.00013758,2]
[424739221,1781106643000,-500.0,0.00013758,2]
[424739225,1781106643000,-500.0,0.00013758,2]
[424739242,1781106643000,-500.0,0.00013758,2]
[424739208,1781106643000,-500.0,0.00013758,2]
[424739180,1781106643000,-500.0,0.00013758,2]
[424739223,1781106643000,-500.0,0.00013758,2]
[424739194,1781106643000,-500.0,0.00013758,2]
[424739191,1781106643000,-500.0,0.00013758,2]
[424739187,1781106643000,-500.0,0.00013758,2]
[424739196,1781106643000,-500.0,0.00013758,2]
[424739203,1781106643000,-500.0,0.00013758,2]
[424739185,1781106643000,-500.0,0.00013758,2]
[424739200,1781106643000,-500.0,0.00013758,2]
[424739198,1781106643000,-500.0,0.00013758,2]
[424739210,1781106643000,-500.0,0.00013758,2]
[424739217,1781106643000,-500.0,0.00013758,2]
[424739212,1781106643000,-500.0,0.00013758,2]
[424739219,1781106643000,-428.00734406,0.00013758,2]
[424739205,1781106643000,-500.0,0.00013758,2]
[424739214,1781106643000,-500.0,0.00013758,2]
[424739299,1781106644000,-500.0,0.00013758,2]
[424739272,1781106644000,-500.0,0.00013758,2]
[424739282,1781106644000,-500.0,0.00013758,2]
[424739281,1781106644000,-500.0,0.00013758,2]
[424739290,1781106644000,-500.0,0.00013758,2]
[424739285,1781106644000,-500.0,0.00013758,2]
[424739295,1781106644000,-630.14690945,0.00013758,2]
[424739273,1781106644000,-301.46909446,0.00013758,2]
[424739287,1781106644000,-500.0,0.00013758,2]
[424739271,1781106644000,-500.0,0.00013758,2]
[424739275,1781106644000,-500.0,0.00013758,2]
[424739270,1781106644000,-500.0,0.00013758,2]
[424739267,1781106644000,-500.0,0.00013758,2]
[424739263,1781106644000,-500.0,0.00013758,2]
[424739277,1781106644000,-500.0,0.00013758,2]
[424739274,1781106644000,-500.0,0.00013758,2]
[424739279,1781106644000,-500.0,0.00013758,2]
[424739261,1781106644000,-500.0,0.00013758,2]
[424739259,1781106644000,-500.0,0.00013758,2]